Workbook

Sheet Program. amortización préstamo
C1: PLAN DE PAGOS | G1: COOPERATIVA TAULABE LIMITADA
C4: Código de afiliado: | G4: Nombre:
H6: Resumen del préstamo
B7: Especificar valores | F7: FALSE | I7: Pago programado | J7: =IF(Valores_especificados,-PMT(Tasa_de_interés/Núm_pagos_al_año,Años_préstamo*Núm_pagos_al_año,Importe_del_préstamo),"") -> 4151.671045
C8: Importe del préstamo | D8: 200000 | I8: Capital efectivo | J8: =Importe_del_préstamo-J10-J11 -> 198000
C9: Tasa de interés anual | D9: 0.09 | I9: Número de pagos programado | J9: =IF(Valores_especificados,Años_préstamo*Núm_pagos_al_año,"") -> 60
C10: Plazo del préstamo en años | D10: 5 | I10: Comisión de desembolso (CD) | J10: =+Importe_del_préstamo*D12 -> 2000
C11: Número de pagos al año | D11: 12 | I11: Comisión de gestión (CG) | J11: =+D13 -> 0
C12: Comisión de desembolso (CD) | D12: 0.01 | I12: Interés total | J12: =IF(Valores_especificados,SUMIF(Saldo_inicial,">0",Int),"") -> 49100.26272
C13: Comisión de gestión (CG) | D13: =+Hoja1!C10 -> 0 | I13: Costo total mensual del crédito | J13: =IRR((OFFSET(C19,,1,(1+J9))),Tasa_de_interés) -> 0.007858958409
C14: Fecha inicial del préstamo | D14: 2024-01-31 | I14: T.A.E. (CAT) real | J14: =+((1+(J13))^D11)-1 -> 0.09849257296
C15: Pagos adicionales opcionales
A18: Nº Pago | B18: Fecha de pago | C18: Saldo inicial | D18: Pago programado | E18: Pago adicional | F18: Pago total | G18: Capital | H18: Interés | I18: Saldo final | J18: Interés acumulativo
D19: =-J8 -> -198000
A20: =IF(Valores_especificados,1,"") -> 1 | B20: =IF(Núm_de_pago<>"",DATE(YEAR(Inicio_prestamo),MONTH(Inicio_prestamo)+(Núm_de_pago)*12/Núm_pagos_al_año,DAY(Inicio_prestamo)),"") -> 2024-03-02 | C20: =IF(Valores_especificados,Importe_del_préstamo,"") -> 200000 | D20: =IF(Núm_de_pago<>"",Pago_mensual_programado,"") -> 4151.671045 | E20: =IF(AND(Núm_de_pago<>"",Pago_progr+Pagos_adicionales_programados<Saldo_inicial),Pagos_adicionales_programados,IF(AND(Núm_de_pago<>"",Saldo_inicial-Pago_progr>0),Saldo_inicial-Pago_progr,IF(Núm_de_pago<>"",0,""))) -> 0 | F20: =IF(AND(Núm_de_pago<>"",Pago_progr+Pago_adicional<Saldo_inicial),Pago_progr+Pago_adicional,IF(Núm_de_pago<>"",Saldo_inicial,"")) -> 4151.671045 | G20: =IF(Núm_de_pago<>"",Pago_total-Int,"") -> 2651.671045 | H20: =IF(Núm_de_pago<>"",Saldo_inicial*(Tasa_de_interés/Núm_pagos_al_año),"") -> 1500 | I20: =IF(AND(Núm_de_pago<>"",Pago_progr+Pago_adicional<Saldo_inicial),Saldo_inicial-Capital,IF(Núm_de_pago<>"",0,"")) -> 197348.329 | J20: =SUM($H$20:$H20) -> 1500
A21: =IF(Valores_especificados,A20+1,"") -> 2 | B21: 2024-03-31 | C21: =IF(Núm_de_pago<>"",I20,"") -> 197348.329 | D21: =IF(Núm_de_pago<>"",Pago_mensual_programado,"") -> 4151.671045 | E21: 0 | F21: 4151.671045 | G21: =IF(Núm_de_pago<>"",Pago_total-Int,"") -> 2671.558578 | H21: =IF(Núm_de_pago<>"",Saldo_inicial*Tasa_de_interés/Núm_pagos_al_año,"") -> 1480.112467 | I21: 194676.7704 | J21: =SUM($H$20:$H21) -> 2980.112467
A22: 3 | B22: 2024-05-01 | C22: 194676.7704 | D22: =IF(Núm_de_pago<>"",Pago_mensual_programado,"") -> 4151.671045 | E22: 0 | F22: 4151.671045 | G22: 2691.595267 | H22: 1460.075778 | I22: 191985.1751 | J22: =SUM($H$20:$H22) -> 4440.188245
A23: 4 | B23: 2024-05-31 | C23: 191985.1751 | D23: =IF(Núm_de_pago<>"",Pago_mensual_programado,"") -> 4151.671045 | E23: 0 | F23: 4151.671045 | G23: 2711.782232 | H23: 1439.888813 | I23: 189273.3929 | J23: =SUM($H$20:$H23) -> 5880.077058
A24: 5 | B24: 2024-07-01 | C24: 189273.3929 | D24: 4151.671045 | E24: 0 | F24: 4151.671045 | G24: 2732.120599 | H24: 1419.550447 | I24: 186541.2723 | J24: =SUM($H$20:$H24) -> 7299.627505
A25: 6 | B25: 2024-07-31 | C25: 186541.2723 | D25: 4151.671045 | E25: 0 | F25: 4151.671045 | G25: 2752.611503 | H25: 1399.059542 | I25: 183788.6608 | J25: =SUM($H$20:$H25) -> 8698.687047
A26: 7 | B26: 2024-08-31 | C26: 183788.6608 | D26: 4151.671045 | E26: 0 | F26: 4151.671045 | G26: 2773.256089 | H26: 1378.414956 | I26: 181015.4047 | J26: =SUM($H$20:$H26) -> 10077.102
A27: 8 | B27: 2024-10-01 | C27: 181015.4047 | D27: 4151.671045 | E27: 0 | F27: 4151.671045 | G27: 2794.05551 | H27: 1357.615535 | I27: 178221.3492 | J27: =SUM($H$20:$H27) -> 11434.71754
A28: 9 | B28: 2024-10-31 | C28: 178221.3492 | D28: 4151.671045 | E28: 0 | F28: 4151.671045 | G28: 2815.010926 | H28: 1336.660119 | I28: 175406.3382 | J28: =SUM($H$20:$H28) -> 12771.37766
A29: 10 | B29: 2024-12-01 | C29: 175406.3382 | D29: 4151.671045 | E29: 0 | F29: 4151.671045 | G29: 2836.123508 | H29: 1315.547537 | I29: 172570.2147 | J29: =SUM($H$20:$H29) -> 14086.92519
A30: 11 | B30: 2024-12-31 | C30: 172570.2147 | D30: 4151.671045 | E30: 0 | F30: 4151.671045 | G30: 2857.394435 | H30: 1294.276611 | I30: 169712.8203 | J30: =SUM($H$20:$H30) -> 15381.2018
A31: 12 | B31: 2025-01-31 | C31: 169712.8203 | D31: 4151.671045 | E31: 0 | F31: 4151.671045 | G31: 2878.824893 | H31: 1272.846152 | I31: 166833.9954 | J31: =SUM($H$20:$H31) -> 16654.04796
A32: 13 | B32: 2025-03-03 | C32: 166833.9954 | D32: 4151.671045 | E32: 0 | F32: 4151.671045 | G32: 2900.41608 | H32: 1251.254966 | I32: 163933.5793 | J32: =SUM($H$20:$H32) -> 17905.30292
A33: 14 | B33: 2025-03-31 | C33: 163933.5793 | D33: 4151.671045 | E33: 0 | F33: 4151.671045 | G33: 2922.1692 | H33: 1229.501845 | I33: 161011.4101 | J33: =SUM($H$20:$H33) -> 19134.80477
A34: 15 | B34: 2025-05-01 | C34: 161011.4101 | D34: 4151.671045 | E34: 0 | F34: 4151.671045 | G34: 2944.085469 | H34: 1207.585576 | I34: 158067.3247 | J34: =SUM($H$20:$H34) -> 20342.39034
A35: 16 | B35: 2025-05-31 | C35: 158067.3247 | D35: 4151.671045 | E35: 0 | F35: 4151.671045 | G35: 2966.16611 | H35: 1185.504935 | I35: 155101.1586 | J35: =SUM($H$20:$H35) -> 21527.89528
A36: 17 | B36: 2025-07-01 | C36: 155101.1586 | D36: 4151.671045 | E36: 0 | F36: 4151.671045 | G36: 2988.412356 | H36: 1163.258689 | I36: 152112.7462 | J36: =SUM($H$20:$H36) -> 22691.15397
A37: 18 | B37: 2025-07-31 | C37: 152112.7462 | D37: 4151.671045 | E37: 0 | F37: 4151.671045 | G37: 3010.825449 | H37: 1140.845596 | I37: 149101.9207 | J37: =SUM($H$20:$H37) -> 23831.99956
A38: 19 | B38: 2025-08-31 | C38: 149101.9207 | D38: 4151.671045 | E38: 0 | F38: 4151.671045 | G38: 3033.40664 | H38: 1118.264406 | I38: 146068.5141 | J38: =SUM($H$20:$H38) -> 24950.26397
A39: 20 | B39: 2025-10-01 | C39: 146068.5141 | D39: 4151.671045 | E39: 0 | F39: 4151.671045 | G39: 3056.157189 | H39: 1095.513856 | I39: 143012.3569 | J39: =SUM($H$20:$H39) -> 26045.77783
A40: 21 | B40: 2025-10-31 | C40: 143012.3569 | D40: 4151.671045 | E40: 0 | F40: 4151.671045 | G40: 3079.078368 | H40: 1072.592677 | I40: 139933.2786 | J40: =SUM($H$20:$H40) -> 27118.3705
A41: 22 | B41: 2025-12-01 | C41: 139933.2786 | D41: 4151.671045 | E41: 0 | F41: 4151.671045 | G41: 3102.171456 | H41: 1049.499589 | I41: 136831.1071 | J41: =SUM($H$20:$H41) -> 28167.87009
A42: 23 | B42: 2025-12-31 | C42: 136831.1071 | D42: 4151.671045 | E42: 0 | F42: 4151.671045 | G42: 3125.437742 | H42: 1026.233303 | I42: 133705.6694 | J42: =SUM($H$20:$H42) -> 29194.10339
A43: 24 | B43: 2026-01-31 | C43: 133705.6694 | D43: 4151.671045 | E43: 0 | F43: 4151.671045 | G43: 3148.878525 | H43: 1002.79252 | I43: 130556.7908 | J43: =SUM($H$20:$H43) -> 30196.89591
A44: 25 | B44: 2026-03-03 | C44: 130556.7908 | D44: 4151.671045 | E44: 0 | F44: 4151.671045 | G44: 3172.495114 | H44: 979.1759312 | I44: 127384.2957 | J44: =SUM($H$20:$H44) -> 31176.07185
A45: 26 | B45: 2026-03-31 | C45: 127384.2957 | D45: 4151.671045 | E45: 0 | F45: 4151.671045 | G45: 3196.288827 | H45: 955.3822179 | I45: 124188.0069 | J45: =SUM($H$20:$H45) -> 32131.45406
A46: 27 | B46: 2026-05-01 | C46: 124188.0069 | D46: 4151.671045 | E46: 0 | F46: 4151.671045 | G46: 3220.260994 | H46: 931.4100516 | I46: 120967.7459 | J46: =SUM($H$20:$H46) -> 33062.86412
A47: 28 | B47: 2026-05-31 | C47: 120967.7459 | D47: 4151.671045 | E47: 0 | F47: 4151.671045 | G47: 3244.412951 | H47: 907.2580942 | I47: 117723.3329 | J47: =SUM($H$20:$H47) -> 33970.12221
A48: 29 | B48: 2026-07-01 | C48: 117723.3329 | D48: 4151.671045 | E48: 0 | F48: 4151.671045 | G48: 3268.746048 | H48: 882.9249971 | I48: 114454.5869 | J48: =SUM($H$20:$H48) -> 34853.04721
A49: 30 | B49: 2026-07-31 | C49: 114454.5869 | D49: 4151.671045 | E49: 0 | F49: 4151.671045 | G49: 3293.261644 | H49: 858.4094017 | I49: 111161.3253 | J49: =SUM($H$20:$H49) -> 35711.45661
A50: 31 | B50: 2026-08-31 | C50: 111161.3253 | D50: 4151.671045 | E50: 0 | F50: 4151.671045 | G50: 3317.961106 | H50: 833.7099394 | I50: 107843.3641 | J50: =SUM($H$20:$H50) -> 36545.16655
A51: 32 | B51: 2026-10-01 | C51: 107843.3641 | D51: 4151.671045 | E51: 0 | F51: 4151.671045 | G51: 3342.845814 | H51: 808.8252311 | I51: 104500.5183 | J51: =SUM($H$20:$H51) -> 37353.99178
A52: 33 | B52: 2026-10-31 | C52: 104500.5183 | D52: 4151.671045 | E52: 0 | F52: 4151.671045 | G52: 3367.917158 | H52: 783.7538875 | I52: 101132.6012 | J52: =SUM($H$20:$H52) -> 38137.74567
A53: 34 | B53: 2026-12-01 | C53: 101132.6012 | D53: 4151.671045 | E53: 0 | F53: 4151.671045 | G53: 3393.176536 | H53: 758.4945088 | I53: 97739.42464 | J53: =SUM($H$20:$H53) -> 38896.24017
A54: =IF(Valores_especificados,A53+1,"") -> 35 | B54: 2026-12-31 | C54: 97739.42464 | D54: 4151.671045 | E54: 0 | F54: 4151.671045 | G54: 3418.625361 | H54: 733.0456848 | I54: 94320.79928 | J54: =SUM($H$20:$H54) -> 39629.28586
A55: 36 | B55: 2027-01-31 | C55: 94320.79928 | D55: 4151.671045 | E55: 0 | F55: 4151.671045 | G55: 3444.265051 | H55: 707.4059946 | I55: 90876.53422 | J55: =SUM($H$20:$H55) -> 40336.69185
A56: =IF(Valores_especificados,A55+1,"") -> 37 | B56: 2027-03-03 | C56: 90876.53422 | D56: 4151.671045 | E56: 0 | F56: 4151.671045 | G56: 3470.097039 | H56: 681.5740067 | I56: 87406.43719 | J56: =SUM($H$20:$H56) -> 41018.26586
A57: 38 | B57: 2027-03-31 | C57: 87406.43719 | D57: 4151.671045 | E57: 0 | F57: 4151.671045 | G57: 3496.122766 | H57: 655.5482789 | I57: 83910.31442 | J57: =SUM($H$20:$H57) -> 41673.81414
A58: 39 | B58: 2027-05-01 | C58: 83910.31442 | D58: 4151.671045 | E58: 0 | F58: 4151.671045 | G58: 3522.343687 | H58: 629.3273581 | I58: 80387.97073 | J58: =SUM($H$20:$H58) -> 42303.1415
A59: 40 | B59: 2027-05-31 | C59: 80387.97073 | D59: 4151.671045 | E59: 0 | F59: 4151.671045 | G59: 3548.761265 | H59: 602.9097805 | I59: 76839.20947 | J59: =SUM($H$20:$H59) -> 42906.05128
A60: 41 | B60: 2027-07-01 | C60: 76839.20947 | D60: 4151.671045 | E60: 0 | F60: 4151.671045 | G60: 3575.376974 | H60: 576.294071 | I60: 73263.83249 | J60: =SUM($H$20:$H60) -> 43482.34535
A61: 42 | B61: 2027-07-31 | C61: 73263.83249 | D61: 4151.671045 | E61: 0 | F61: 4151.671045 | G61: 3602.192302 | H61: 549.4787437 | I61: 69661.64019 | J61: =SUM($H$20:$H61) -> 44031.82409
A62: 43 | B62: 2027-08-31 | C62: 69661.64019 | D62: 4151.671045 | E62: 0 | F62: 4151.671045 | G62: 3629.208744 | H62: 522.4623014 | I62: 66032.43145 | J62: =SUM($H$20:$H62) -> 44554.28639
A63: 44 | B63: 2027-10-01 | C63: 66032.43145 | D63: 4151.671045 | E63: 0 | F63: 4151.671045 | G63: 3656.427809 | H63: 495.2432359 | I63: 62376.00364 | J63: =SUM($H$20:$H63) -> 45049.52963
A64: 45 | B64: 2027-10-31 | C64: 62376.00364 | D64: 4151.671045 | E64: 0 | F64: 4151.671045 | G64: 3683.851018 | H64: 467.8200273 | I64: 58692.15262 | J64: =SUM($H$20:$H64) -> 45517.34966
A65: 46 | B65: 2027-12-01 | C65: 58692.15262 | D65: 4151.671045 | E65: 0 | F65: 4151.671045 | G65: 3711.479901 | H65: 440.1911447 | I65: 54980.67272 | J65: =SUM($H$20:$H65) -> 45957.5408
A66: 47 | B66: 2027-12-31 | C66: 54980.67272 | D66: 4151.671045 | E66: 0 | F66: 4151.671045 | G66: 3739.316 | H66: 412.3550454 | I66: 51241.35672 | J66: =SUM($H$20:$H66) -> 46369.89585
A67: 48 | B67: 2028-01-31 | C67: 51241.35672 | D67: 4151.671045 | E67: 0 | F67: 4151.671045 | G67: 3767.36087 | H67: 384.3101754 | I67: 47473.99585 | J67: =SUM($H$20:$H67) -> 46754.20602
A68: 49 | B68: 2028-03-02 | C68: 47473.99585 | D68: 4151.671045 | E68: 0 | F68: 4151.671045 | G68: 3795.616076 | H68: 356.0549689 | I68: 43678.37977 | J68: =SUM($H$20:$H68) -> 47110.26099
A69: 50 | B69: 2028-03-31 | C69: 43678.37977 | D69: 4151.671045 | E69: 0 | F69: 4151.671045 | G69: 3824.083197 | H69: 327.5878483 | I69: 39854.29658 | J69: =SUM($H$20:$H69) -> 47437.84884
A70: 51 | B70: 2028-05-01 | C70: 39854.29658 | D70: 4151.671045 | E70: 0 | F70: 4151.671045 | G70: 3852.763821 | H70: 298.9072243 | I70: 36001.53276 | J70: =SUM($H$20:$H70) -> 47736.75606
A71: 52 | B71: 2028-05-31 | C71: 36001.53276 | D71: 4151.671045 | E71: 0 | F71: 4151.671045 | G71: 3881.65955 | H71: 270.0114957 | I71: 32119.87321 | J71: =SUM($H$20:$H71) -> 48006.76756
A72: 53 | B72: 2028-07-01 | C72: 32119.87321 | D72: 4151.671045 | E72: 0 | F72: 4151.671045 | G72: 3910.771996 | H72: 240.899049 | I72: 28209.10121 | J72: =SUM($H$20:$H72) -> 48247.66661
A73: 54 | B73: 2028-07-31 | C73: 28209.10121 | D73: 4151.671045 | E73: 0 | F73: 4151.671045 | G73: 3940.102786 | H73: 211.5682591 | I73: 24268.99842 | J73: =SUM($H$20:$H73) -> 48459.23487
A74: 55 | B74: 2028-08-31 | C74: 24268.99842 | D74: 4151.671045 | E74: 0 | F74: 4151.671045 | G74: 3969.653557 | H74: 182.0174882 | I74: 20299.34487 | J74: =SUM($H$20:$H74) -> 48641.25236
A75: 56 | B75: 2028-10-01 | C75: 20299.34487 | D75: 4151.671045 | E75: 0 | F75: 4151.671045 | G75: 3999.425959 | H75: 152.2450865 | I75: 16299.91891 | J75: =SUM($H$20:$H75) -> 48793.49744
A76: 57 | B76: 2028-10-31 | C76: 16299.91891 | D76: 4151.671045 | E76: 0 | F76: 4151.671045 | G76: 4029.421653 | H76: 122.2493918 | I76: 12270.49725 | J76: =SUM($H$20:$H76) -> 48915.74684
A77: 58 | B77: 2028-12-01 | C77: 12270.49725 | D77: 4151.671045 | E77: 0 | F77: 4151.671045 | G77: 4059.642316 | H77: 92.02872941 | I77: 8210.854939 | J77: =SUM($H$20:$H77) -> 49007.77556
A78: 59 | B78: 2028-12-31 | C78: 8210.854939 | D78: 4151.671045 | E78: 0 | F78: 4151.671045 | G78: 4090.089633 | H78: 61.58141204 | I78: 4120.765305 | J78: =SUM($H$20:$H78) -> 49069.35698
A79: 60 | B79: 2029-01-31 | C79: 4120.765305 | D79: 4151.671045 | E79: 0 | F79: 4120.765305 | G79: 4089.859566 | H79: 30.90573979 | I79: 0 | J79: =SUM($H$20:$H79) -> 49100.26272
A80: 61 | B80: 2029-03-03 | C80: 0 | D80: 4151.671045 | E80: 0 | F80: 0 | G80: 0 | H80: 0 | I80: 0 | J80: =SUM($H$20:$H80) -> 49100.26272
A81: 62 | B81: 2029-03-31 | C81: 0 | D81: 4151.671045 | E81: 0 | F81: 0 | G81: 0 | H81: 0 | I81: 0 | J81: =SUM($H$20:$H81) -> 49100.26272
A82: 63 | B82: 2029-05-01 | C82: 0 | D82: 4151.671045 | E82: 0 | F82: 0 | G82: 0 | H82: 0 | I82: 0 | J82: =SUM($H$20:$H82) -> 49100.26272
A83: 64 | B83: 2029-05-31 | C83: 0 | D83: 4151.671045 | E83: 0 | F83: 0 | G83: 0 | H83: 0 | I83: 0 | J83: =SUM($H$20:$H83) -> 49100.26272
A84: 65 | B84: =IF(Núm_de_pago<>"",DATE(YEAR(Inicio_prestamo),MONTH(Inicio_prestamo)+(Núm_de_pago)*12/Núm_pagos_al_año,DAY(Inicio_prestamo)),"") -> 2029-07-01 | C84: 0 | D84: 4151.671045 | E84: =IF(AND(Núm_de_pago<>"",Pago_progr+Pagos_adicionales_programados<Saldo_inicial),Pagos_adicionales_programados,IF(AND(Núm_de_pago<>"",Saldo_inicial-Pago_progr>0),Saldo_inicial-Pago_progr,IF(Núm_de_pago<>"",0,""))) -> 0 | F84: =IF(AND(Núm_de_pago<>"",Pago_progr+Pago_adicional<Saldo_inicial),Pago_progr+Pago_adicional,IF(Núm_de_pago<>"",Saldo_inicial,"")) -> 0 | G84: 0 | H84: 0 | I84: =IF(AND(Núm_de_pago<>"",Pago_progr+Pago_adicional<Saldo_inicial),Saldo_inicial-Capital,IF(Núm_de_pago<>"",0,"")) -> 0 | J84: =SUM($H$20:$H84) -> 49100.26272
A85: =IF(Valores_especificados,A84+1,"") -> 66 | B85: 2029-07-31 | C85: =IF(Núm_de_pago<>"",I84,"") -> 0 | D85: 4151.671045 | E85: 0 | F85: 0 | G85: =IF(Núm_de_pago<>"",Pago_total-Int,"") -> 0 | H85: =IF(Núm_de_pago<>"",Saldo_inicial*Tasa_de_interés/Núm_pagos_al_año,"") -> 0 | I85: 0 | J85: =SUM($H$20:$H85) -> 49100.26272
A86: 67 | B86: 2029-08-31 | C86: 0 | D86: =IF(Núm_de_pago<>"",Pago_mensual_programado,"") -> 4151.671045 | E86: 0 | F86: 0 | G86: 0 | H86: 0 | I86: 0 | J86: =SUM($H$20:$H86) -> 49100.26272
A87: 68 | B87: 2029-10-01 | C87: 0 | D87: 4151.671045 | E87: 0 | F87: 0 | G87: 0 | H87: 0 | I87: 0 | J87: =SUM($H$20:$H87) -> 49100.26272
A88: 69 | B88: 2029-10-31 | C88: 0 | D88: 4151.671045 | E88: 0 | F88: 0 | G88: 0 | H88: 0 | I88: 0 | J88: =SUM($H$20:$H88) -> 49100.26272
A89: 70 | B89: 2029-12-01 | C89: 0 | D89: 4151.671045 | E89: 0 | F89: 0 | G89: 0 | H89: 0 | I89: 0 | J89: =SUM($H$20:$H89) -> 49100.26272
A90: 71 | B90: 2029-12-31 | C90: 0 | D90: 4151.671045 | E90: 0 | F90: 0 | G90: 0 | H90: 0 | I90: 0 | J90: =SUM($H$20:$H90) -> 49100.26272
A91: 72 | B91: 2030-01-31 | C91: 0 | D91: 4151.671045 | E91: 0 | F91: 0 | G91: 0 | H91: 0 | I91: 0 | J91: =SUM($H$20:$H91) -> 49100.26272
A92: 73 | B92: 2030-03-03 | C92: 0 | D92: 4151.671045 | E92: 0 | F92: 0 | G92: 0 | H92: 0 | I92: 0 | J92: =SUM($H$20:$H92) -> 49100.26272
A93: 74 | B93: 2030-03-31 | C93: 0 | D93: 4151.671045 | E93: 0 | F93: 0 | G93: 0 | H93: 0 | I93: 0 | J93: =SUM($H$20:$H93) -> 49100.26272
A94: 75 | B94: 2030-05-01 | C94: 0 | D94: 4151.671045 | E94: 0 | F94: 0 | G94: 0 | H94: 0 | I94: 0 | J94: =SUM($H$20:$H94) -> 49100.26272
A95: 76 | B95: 2030-05-31 | C95: 0 | D95: 4151.671045 | E95: 0 | F95: 0 | G95: 0 | H95: 0 | I95: 0 | J95: =SUM($H$20:$H95) -> 49100.26272
A96: 77 | B96: 2030-07-01 | C96: 0 | D96: 4151.671045 | E96: 0 | F96: 0 | G96: 0 | H96: 0 | I96: 0 | J96: =SUM($H$20:$H96) -> 49100.26272
A97: 78 | B97: 2030-07-31 | C97: 0 | D97: 4151.671045 | E97: 0 | F97: 0 | G97: 0 | H97: 0 | I97: 0 | J97: =SUM($H$20:$H97) -> 49100.26272
A98: 79 | B98: 2030-08-31 | C98: 0 | D98: 4151.671045 | E98: 0 | F98: 0 | G98: 0 | H98: 0 | I98: 0 | J98: =SUM($H$20:$H98) -> 49100.26272
A99: 80 | B99: 2030-10-01 | C99: 0 | D99: 4151.671045 | E99: 0 | F99: 0 | G99: 0 | H99: 0 | I99: 0 | J99: =SUM($H$20:$H99) -> 49100.26272
A100: 81 | B100: 2030-10-31 | C100: 0 | D100: 4151.671045 | E100: 0 | F100: 0 | G100: 0 | H100: 0 | I100: 0 | J100: =SUM($H$20:$H100) -> 49100.26272
A101: 82 | B101: 2030-12-01 | C101: 0 | D101: 4151.671045 | E101: 0 | F101: 0 | G101: 0 | H101: 0 | I101: 0 | J101: =SUM($H$20:$H101) -> 49100.26272
A102: 83 | B102: 2030-12-31 | C102: 0 | D102: 4151.671045 | E102: 0 | F102: 0 | G102: 0 | H102: 0 | I102: 0 | J102: =SUM($H$20:$H102) -> 49100.26272
A103: 84 | B103: 2031-01-31 | C103: 0 | D103: 4151.671045 | E103: 0 | F103: 0 | G103: 0 | H103: 0 | I103: 0 | J103: =SUM($H$20:$H103) -> 49100.26272
A104: 85 | B104: 2031-03-03 | C104: 0 | D104: 4151.671045 | E104: 0 | F104: 0 | G104: 0 | H104: 0 | I104: 0 | J104: =SUM($H$20:$H104) -> 49100.26272
A105: 86 | B105: 2031-03-31 | C105: 0 | D105: 4151.671045 | E105: 0 | F105: 0 | G105: 0 | H105: 0 | I105: 0 | J105: =SUM($H$20:$H105) -> 49100.26272
A106: 87 | B106: 2031-05-01 | C106: 0 | D106: 4151.671045 | E106: 0 | F106: 0 | G106: 0 | H106: 0 | I106: 0 | J106: =SUM($H$20:$H106) -> 49100.26272
A107: 88 | B107: 2031-05-31 | C107: 0 | D107: 4151.671045 | E107: 0 | F107: 0 | G107: 0 | H107: 0 | I107: 0 | J107: =SUM($H$20:$H107) -> 49100.26272
A108: 89 | B108: 2031-07-01 | C108: 0 | D108: 4151.671045 | E108: 0 | F108: 0 | G108: 0 | H108: 0 | I108: 0 | J108: =SUM($H$20:$H108) -> 49100.26272
A109: 90 | B109: 2031-07-31 | C109: 0 | D109: 4151.671045 | E109: 0 | F109: 0 | G109: 0 | H109: 0 | I109: 0 | J109: =SUM($H$20:$H109) -> 49100.26272
A110: 91 | B110: 2031-08-31 | C110: 0 | D110: 4151.671045 | E110: 0 | F110: 0 | G110: 0 | H110: 0 | I110: 0 | J110: =SUM($H$20:$H110) -> 49100.26272
A111: 92 | B111: 2031-10-01 | C111: 0 | D111: 4151.671045 | E111: 0 | F111: 0 | G111: 0 | H111: 0 | I111: 0 | J111: =SUM($H$20:$H111) -> 49100.26272
A112: 93 | B112: 2031-10-31 | C112: 0 | D112: 4151.671045 | E112: 0 | F112: 0 | G112: 0 | H112: 0 | I112: 0 | J112: =SUM($H$20:$H112) -> 49100.26272
A113: 94 | B113: 2031-12-01 | C113: 0 | D113: 4151.671045 | E113: 0 | F113: 0 | G113: 0 | H113: 0 | I113: 0 | J113: =SUM($H$20:$H113) -> 49100.26272
A114: 95 | B114: 2031-12-31 | C114: 0 | D114: 4151.671045 | E114: 0 | F114: 0 | G114: 0 | H114: 0 | I114: 0 | J114: =SUM($H$20:$H114) -> 49100.26272
A115: 96 | B115: 2032-01-31 | C115: 0 | D115: 4151.671045 | E115: 0 | F115: 0 | G115: 0 | H115: 0 | I115: 0 | J115: =SUM($H$20:$H115) -> 49100.26272
A116: 97 | B116: 2032-03-02 | C116: 0 | D116: 4151.671045 | E116: 0 | F116: 0 | G116: 0 | H116: 0 | I116: 0 | J116: =SUM($H$20:$H116) -> 49100.26272
A117: 98 | B117: 2032-03-31 | C117: 0 | D117: 4151.671045 | E117: 0 | F117: 0 | G117: 0 | H117: 0 | I117: 0 | J117: =SUM($H$20:$H117) -> 49100.26272
A118: 99 | B118: 2032-05-01 | C118: 0 | D118: 4151.671045 | E118: 0 | F118: 0 | G118: 0 | H118: 0 | I118: 0 | J118: =SUM($H$20:$H118) -> 49100.26272
A119: 100 | B119: 2032-05-31 | C119: 0 | D119: 4151.671045 | E119: 0 | F119: 0 | G119: 0 | H119: 0 | I119: 0 | J119: =SUM($H$20:$H119) -> 49100.26272
A120: 101 | B120: 2032-07-01 | C120: 0 | D120: 4151.671045 | E120: 0 | F120: 0 | G120: 0 | H120: 0 | I120: 0 | J120: =SUM($H$20:$H120) -> 49100.26272
A121: 102 | B121: 2032-07-31 | C121: 0 | D121: 4151.671045 | E121: 0 | F121: 0 | G121: 0 | H121: 0 | I121: 0 | J121: =SUM($H$20:$H121) -> 49100.26272
A122: 103 | B122: 2032-08-31 | C122: 0 | D122: 4151.671045 | E122: 0 | F122: 0 | G122: 0 | H122: 0 | I122: 0 | J122: =SUM($H$20:$H122) -> 49100.26272
A123: 104 | B123: 2032-10-01 | C123: 0 | D123: 4151.671045 | E123: 0 | F123: 0 | G123: 0 | H123: 0 | I123: 0 | J123: =SUM($H$20:$H123) -> 49100.26272
A124: 105 | B124: 2032-10-31 | C124: 0 | D124: 4151.671045 | E124: 0 | F124: 0 | G124: 0 | H124: 0 | I124: 0 | J124: =SUM($H$20:$H124) -> 49100.26272
A125: 106 | B125: 2032-12-01 | C125: 0 | D125: 4151.671045 | E125: 0 | F125: 0 | G125: 0 | H125: 0 | I125: 0 | J125: =SUM($H$20:$H125) -> 49100.26272
A126: 107 | B126: 2032-12-31 | C126: 0 | D126: 4151.671045 | E126: 0 | F126: 0 | G126: 0 | H126: 0 | I126: 0 | J126: =SUM($H$20:$H126) -> 49100.26272
A127: 108 | B127: 2033-01-31 | C127: 0 | D127: 4151.671045 | E127: 0 | F127: 0 | G127: 0 | H127: 0 | I127: 0 | J127: =SUM($H$20:$H127) -> 49100.26272
A128: 109 | B128: 2033-03-03 | C128: 0 | D128: 4151.671045 | E128: 0 | F128: 0 | G128: 0 | H128: 0 | I128: 0 | J128: =SUM($H$20:$H128) -> 49100.26272
A129: 110 | B129: 2033-03-31 | C129: 0 | D129: 4151.671045 | E129: 0 | F129: 0 | G129: 0 | H129: 0 | I129: 0 | J129: =SUM($H$20:$H129) -> 49100.26272
A130: 111 | B130: 2033-05-01 | C130: 0 | D130: 4151.671045 | E130: 0 | F130: 0 | G130: 0 | H130: 0 | I130: 0 | J130: =SUM($H$20:$H130) -> 49100.26272
A131: 112 | B131: 2033-05-31 | C131: 0 | D131: 4151.671045 | E131: 0 | F131: 0 | G131: 0 | H131: 0 | I131: 0 | J131: =SUM($H$20:$H131) -> 49100.26272
A132: 113 | B132: 2033-07-01 | C132: 0 | D132: 4151.671045 | E132: 0 | F132: 0 | G132: 0 | H132: 0 | I132: 0 | J132: =SUM($H$20:$H132) -> 49100.26272
A133: 114 | B133: 2033-07-31 | C133: 0 | D133: 4151.671045 | E133: 0 | F133: 0 | G133: 0 | H133: 0 | I133: 0 | J133: =SUM($H$20:$H133) -> 49100.26272
A134: 115 | B134: 2033-08-31 | C134: 0 | D134: 4151.671045 | E134: 0 | F134: 0 | G134: 0 | H134: 0 | I134: 0 | J134: =SUM($H$20:$H134) -> 49100.26272
A135: 116 | B135: 2033-10-01 | C135: 0 | D135: 4151.671045 | E135: 0 | F135: 0 | G135: 0 | H135: 0 | I135: 0 | J135: =SUM($H$20:$H135) -> 49100.26272
A136: 117 | B136: 2033-10-31 | C136: 0 | D136: 4151.671045 | E136: 0 | F136: 0 | G136: 0 | H136: 0 | I136: 0 | J136: =SUM($H$20:$H136) -> 49100.26272
A137: 118 | B137: 2033-12-01 | C137: 0 | D137: 4151.671045 | E137: 0 | F137: 0 | G137: 0 | H137: 0 | I137: 0 | J137: =SUM($H$20:$H137) -> 49100.26272
A138: 119 | B138: 2033-12-31 | C138: 0 | D138: 4151.671045 | E138: 0 | F138: 0 | G138: 0 | H138: 0 | I138: 0 | J138: =SUM($H$20:$H138) -> 49100.26272
A139: 120 | B139: 2034-01-31 | C139: 0 | D139: 4151.671045 | E139: 0 | F139: 0 | G139: 0 | H139: 0 | I139: 0 | J139: =SUM($H$20:$H139) -> 49100.26272
A140: 121 | B140: 2034-03-03 | C140: 0 | D140: 4151.671045 | E140: 0 | F140: 0 | G140: 0 | H140: 0 | I140: 0 | J140: =SUM($H$20:$H140) -> 49100.26272
A141: 122 | B141: 2034-03-31 | C141: 0 | D141: 4151.671045 | E141: 0 | F141: 0 | G141: 0 | H141: 0 | I141: 0 | J141: =SUM($H$20:$H141) -> 49100.26272
A142: 123 | B142: 2034-05-01 | C142: 0 | D142: 4151.671045 | E142: 0 | F142: 0 | G142: 0 | H142: 0 | I142: 0 | J142: =SUM($H$20:$H142) -> 49100.26272
A143: 124 | B143: 2034-05-31 | C143: 0 | D143: 4151.671045 | E143: 0 | F143: 0 | G143: 0 | H143: 0 | I143: 0 | J143: =SUM($H$20:$H143) -> 49100.26272
A144: 125 | B144: 2034-07-01 | C144: 0 | D144: 4151.671045 | E144: 0 | F144: 0 | G144: 0 | H144: 0 | I144: 0 | J144: =SUM($H$20:$H144) -> 49100.26272
A145: 126 | B145: 2034-07-31 | C145: 0 | D145: 4151.671045 | E145: 0 | F145: 0 | G145: 0 | H145: 0 | I145: 0 | J145: =SUM($H$20:$H145) -> 49100.26272
A146: 127 | B146: 2034-08-31 | C146: 0 | D146: 4151.671045 | E146: 0 | F146: 0 | G146: 0 | H146: 0 | I146: 0 | J146: =SUM($H$20:$H146) -> 49100.26272
A147: 128 | B147: 2034-10-01 | C147: 0 | D147: 4151.671045 | E147: 0 | F147: 0 | G147: 0 | H147: 0 | I147: 0 | J147: =SUM($H$20:$H147) -> 49100.26272
A148: 129 | B148: =IF(Núm_de_pago<>"",DATE(YEAR(Inicio_prestamo),MONTH(Inicio_prestamo)+(Núm_de_pago)*12/Núm_pagos_al_año,DAY(Inicio_prestamo)),"") -> 2034-10-31 | C148: 0 | D148: 4151.671045 | E148: =IF(AND(Núm_de_pago<>"",Pago_progr+Pagos_adicionales_programados<Saldo_inicial),Pagos_adicionales_programados,IF(AND(Núm_de_pago<>"",Saldo_inicial-Pago_progr>0),Saldo_inicial-Pago_progr,IF(Núm_de_pago<>"",0,""))) -> 0 | F148: =IF(AND(Núm_de_pago<>"",Pago_progr+Pago_adicional<Saldo_inicial),Pago_progr+Pago_adicional,IF(Núm_de_pago<>"",Saldo_inicial,"")) -> 0 | G148: 0 | H148: 0 | I148: =IF(AND(Núm_de_pago<>"",Pago_progr+Pago_adicional<Saldo_inicial),Saldo_inicial-Capital,IF(Núm_de_pago<>"",0,"")) -> 0 | J148: =SUM($H$20:$H148) -> 49100.26272
A149: =IF(Valores_especificados,A148+1,"") -> 130 | B149: 2034-12-01 | C149: =IF(Núm_de_pago<>"",I148,"") -> 0 | D149: 4151.671045 | E149: 0 | F149: 0 | G149: =IF(Núm_de_pago<>"",Pago_total-Int,"") -> 0 | H149: =IF(Núm_de_pago<>"",Saldo_inicial*Tasa_de_interés/Núm_pagos_al_año,"") -> 0 | I149: 0 | J149: =SUM($H$20:$H149) -> 49100.26272
A150: 131 | B150: 2034-12-31 | C150: 0 | D150: =IF(Núm_de_pago<>"",Pago_mensual_programado,"") -> 4151.671045 | E150: 0 | F150: 0 | G150: 0 | H150: 0 | I150: 0 | J150: =SUM($H$20:$H150) -> 49100.26272
A151: 132 | B151: 2035-01-31 | C151: 0 | D151: 4151.671045 | E151: 0 | F151: 0 | G151: 0 | H151: 0 | I151: 0 | J151: =SUM($H$20:$H151) -> 49100.26272
A152: 133 | B152: 2035-03-03 | C152: 0 | D152: 4151.671045 | E152: 0 | F152: 0 | G152: 0 | H152: 0 | I152: 0 | J152: =SUM($H$20:$H152) -> 49100.26272
A153: 134 | B153: 2035-03-31 | C153: 0 | D153: 4151.671045 | E153: 0 | F153: 0 | G153: 0 | H153: 0 | I153: 0 | J153: =SUM($H$20:$H153) -> 49100.26272
A154: 135 | B154: 2035-05-01 | C154: 0 | D154: 4151.671045 | E154: 0 | F154: 0 | G154: 0 | H154: 0 | I154: 0 | J154: =SUM($H$20:$H154) -> 49100.26272
A155: 136 | B155: 2035-05-31 | C155: 0 | D155: 4151.671045 | E155: 0 | F155: 0 | G155: 0 | H155: 0 | I155: 0 | J155: =SUM($H$20:$H155) -> 49100.26272
A156: 137 | B156: 2035-07-01 | C156: 0 | D156: 4151.671045 | E156: 0 | F156: 0 | G156: 0 | H156: 0 | I156: 0 | J156: =SUM($H$20:$H156) -> 49100.26272
A157: 138 | B157: 2035-07-31 | C157: 0 | D157: 4151.671045 | E157: 0 | F157: 0 | G157: 0 | H157: 0 | I157: 0 | J157: =SUM($H$20:$H157) -> 49100.26272
A158: 139 | B158: 2035-08-31 | C158: 0 | D158: 4151.671045 | E158: 0 | F158: 0 | G158: 0 | H158: 0 | I158: 0 | J158: =SUM($H$20:$H158) -> 49100.26272
A159: 140 | B159: 2035-10-01 | C159: 0 | D159: 4151.671045 | E159: 0 | F159: 0 | G159: 0 | H159: 0 | I159: 0 | J159: =SUM($H$20:$H159) -> 49100.26272
A160: 141 | B160: 2035-10-31 | C160: 0 | D160: 4151.671045 | E160: 0 | F160: 0 | G160: 0 | H160: 0 | I160: 0 | J160: =SUM($H$20:$H160) -> 49100.26272
A161: 142 | B161: 2035-12-01 | C161: 0 | D161: 4151.671045 | E161: 0 | F161: 0 | G161: 0 | H161: 0 | I161: 0 | J161: =SUM($H$20:$H161) -> 49100.26272
A162: 143 | B162: 2035-12-31 | C162: 0 | D162: 4151.671045 | E162: 0 | F162: 0 | G162: 0 | H162: 0 | I162: 0 | J162: =SUM($H$20:$H162) -> 49100.26272
A163: 144 | B163: 2036-01-31 | C163: 0 | D163: 4151.671045 | E163: 0 | F163: 0 | G163: 0 | H163: 0 | I163: 0 | J163: =SUM($H$20:$H163) -> 49100.26272
A164: 145 | B164: 2036-03-02 | C164: 0 | D164: 4151.671045 | E164: 0 | F164: 0 | G164: 0 | H164: 0 | I164: 0 | J164: =SUM($H$20:$H164) -> 49100.26272
A165: 146 | B165: 2036-03-31 | C165: 0 | D165: 4151.671045 | E165: 0 | F165: 0 | G165: 0 | H165: 0 | I165: 0 | J165: =SUM($H$20:$H165) -> 49100.26272
A166: 147 | B166: 2036-05-01 | C166: 0 | D166: 4151.671045 | E166: 0 | F166: 0 | G166: 0 | H166: 0 | I166: 0 | J166: =SUM($H$20:$H166) -> 49100.26272
A167: 148 | B167: 2036-05-31 | C167: 0 | D167: 4151.671045 | E167: 0 | F167: 0 | G167: 0 | H167: 0 | I167: 0 | J167: =SUM($H$20:$H167) -> 49100.26272
A168: 149 | B168: 2036-07-01 | C168: 0 | D168: 4151.671045 | E168: 0 | F168: 0 | G168: 0 | H168: 0 | I168: 0 | J168: =SUM($H$20:$H168) -> 49100.26272
A169: 150 | B169: 2036-07-31 | C169: 0 | D169: 4151.671045 | E169: 0 | F169: 0 | G169: 0 | H169: 0 | I169: 0 | J169: =SUM($H$20:$H169) -> 49100.26272
A170: 151 | B170: 2036-08-31 | C170: 0 | D170: 4151.671045 | E170: 0 | F170: 0 | G170: 0 | H170: 0 | I170: 0 | J170: =SUM($H$20:$H170) -> 49100.26272
A171: 152 | B171: 2036-10-01 | C171: 0 | D171: 4151.671045 | E171: 0 | F171: 0 | G171: 0 | H171: 0 | I171: 0 | J171: =SUM($H$20:$H171) -> 49100.26272
A172: 153 | B172: 2036-10-31 | C172: 0 | D172: 4151.671045 | E172: 0 | F172: 0 | G172: 0 | H172: 0 | I172: 0 | J172: =SUM($H$20:$H172) -> 49100.26272
A173: 154 | B173: 2036-12-01 | C173: 0 | D173: 4151.671045 | E173: 0 | F173: 0 | G173: 0 | H173: 0 | I173: 0 | J173: =SUM($H$20:$H173) -> 49100.26272
A174: 155 | B174: 2036-12-31 | C174: 0 | D174: 4151.671045 | E174: 0 | F174: 0 | G174: 0 | H174: 0 | I174: 0 | J174: =SUM($H$20:$H174) -> 49100.26272
A175: 156 | B175: 2037-01-31 | C175: 0 | D175: 4151.671045 | E175: 0 | F175: 0 | G175: 0 | H175: 0 | I175: 0 | J175: =SUM($H$20:$H175) -> 49100.26272
A176: 157 | B176: 2037-03-03 | C176: 0 | D176: 4151.671045 | E176: 0 | F176: 0 | G176: 0 | H176: 0 | I176: 0 | J176: =SUM($H$20:$H176) -> 49100.26272
A177: 158 | B177: 2037-03-31 | C177: 0 | D177: 4151.671045 | E177: 0 | F177: 0 | G177: 0 | H177: 0 | I177: 0 | J177: =SUM($H$20:$H177) -> 49100.26272
A178: 159 | B178: 2037-05-01 | C178: 0 | D178: 4151.671045 | E178: 0 | F178: 0 | G178: 0 | H178: 0 | I178: 0 | J178: =SUM($H$20:$H178) -> 49100.26272
A179: 160 | B179: 2037-05-31 | C179: 0 | D179: 4151.671045 | E179: 0 | F179: 0 | G179: 0 | H179: 0 | I179: 0 | J179: =SUM($H$20:$H179) -> 49100.26272
A180: 161 | B180: 2037-07-01 | C180: 0 | D180: 4151.671045 | E180: 0 | F180: 0 | G180: 0 | H180: 0 | I180: 0 | J180: =SUM($H$20:$H180) -> 49100.26272
A181: 162 | B181: 2037-07-31 | C181: 0 | D181: 4151.671045 | E181: 0 | F181: 0 | G181: 0 | H181: 0 | I181: 0 | J181: =SUM($H$20:$H181) -> 49100.26272
A182: 163 | B182: 2037-08-31 | C182: 0 | D182: 4151.671045 | E182: 0 | F182: 0 | G182: 0 | H182: 0 | I182: 0 | J182: =SUM($H$20:$H182) -> 49100.26272
A183: 164 | B183: 2037-10-01 | C183: 0 | D183: 4151.671045 | E183: 0 | F183: 0 | G183: 0 | H183: 0 | I183: 0 | J183: =SUM($H$20:$H183) -> 49100.26272
A184: 165 | B184: 2037-10-31 | C184: 0 | D184: 4151.671045 | E184: 0 | F184: 0 | G184: 0 | H184: 0 | I184: 0 | J184: =SUM($H$20:$H184) -> 49100.26272
A185: 166 | B185: 2037-12-01 | C185: 0 | D185: 4151.671045 | E185: 0 | F185: 0 | G185: 0 | H185: 0 | I185: 0 | J185: =SUM($H$20:$H185) -> 49100.26272
A186: 167 | B186: 2037-12-31 | C186: 0 | D186: 4151.671045 | E186: 0 | F186: 0 | G186: 0 | H186: 0 | I186: 0 | J186: =SUM($H$20:$H186) -> 49100.26272
A187: 168 | B187: 2038-01-31 | C187: 0 | D187: 4151.671045 | E187: 0 | F187: 0 | G187: 0 | H187: 0 | I187: 0 | J187: =SUM($H$20:$H187) -> 49100.26272
A188: 169 | B188: 2038-03-03 | C188: 0 | D188: 4151.671045 | E188: 0 | F188: 0 | G188: 0 | H188: 0 | I188: 0 | J188: =SUM($H$20:$H188) -> 49100.26272
A189: 170 | B189: 2038-03-31 | C189: 0 | D189: 4151.671045 | E189: 0 | F189: 0 | G189: 0 | H189: 0 | I189: 0 | J189: =SUM($H$20:$H189) -> 49100.26272
A190: 171 | B190: 2038-05-01 | C190: 0 | D190: 4151.671045 | E190: 0 | F190: 0 | G190: 0 | H190: 0 | I190: 0 | J190: =SUM($H$20:$H190) -> 49100.26272
A191: 172 | B191: 2038-05-31 | C191: 0 | D191: 4151.671045 | E191: 0 | F191: 0 | G191: 0 | H191: 0 | I191: 0 | J191: =SUM($H$20:$H191) -> 49100.26272
A192: 173 | B192: 2038-07-01 | C192: 0 | D192: 4151.671045 | E192: 0 | F192: 0 | G192: 0 | H192: 0 | I192: 0 | J192: =SUM($H$20:$H192) -> 49100.26272
A193: 174 | B193: 2038-07-31 | C193: 0 | D193: 4151.671045 | E193: 0 | F193: 0 | G193: 0 | H193: 0 | I193: 0 | J193: =SUM($H$20:$H193) -> 49100.26272
A194: 175 | B194: 2038-08-31 | C194: 0 | D194: 4151.671045 | E194: 0 | F194: 0 | G194: 0 | H194: 0 | I194: 0 | J194: =SUM($H$20:$H194) -> 49100.26272
A195: 176 | B195: 2038-10-01 | C195: 0 | D195: 4151.671045 | E195: 0 | F195: 0 | G195: 0 | H195: 0 | I195: 0 | J195: =SUM($H$20:$H195) -> 49100.26272
A196: 177 | B196: 2038-10-31 | C196: 0 | D196: 4151.671045 | E196: 0 | F196: 0 | G196: 0 | H196: 0 | I196: 0 | J196: =SUM($H$20:$H196) -> 49100.26272
A197: 178 | B197: 2038-12-01 | C197: 0 | D197: 4151.671045 | E197: 0 | F197: 0 | G197: 0 | H197: 0 | I197: 0 | J197: =SUM($H$20:$H197) -> 49100.26272
A198: 179 | B198: 2038-12-31 | C198: 0 | D198: 4151.671045 | E198: 0 | F198: 0 | G198: 0 | H198: 0 | I198: 0 | J198: =SUM($H$20:$H198) -> 49100.26272
A199: 180 | B199: 2039-01-31 | C199: 0 | D199: 4151.671045 | E199: 0 | F199: 0 | G199: 0 | H199: 0 | I199: 0 | J199: =SUM($H$20:$H199) -> 49100.26272
A200: 181 | B200: 2039-03-03 | C200: 0 | D200: 4151.671045 | E200: 0 | F200: 0 | G200: 0 | H200: 0 | I200: 0 | J200: =SUM($H$20:$H200) -> 49100.26272
A201: 182 | B201: 2039-03-31 | C201: 0 | D201: 4151.671045 | E201: 0 | F201: 0 | G201: 0 | H201: 0 | I201: 0 | J201: =SUM($H$20:$H201) -> 49100.26272
A202: 183 | B202: 2039-05-01 | C202: 0 | D202: 4151.671045 | E202: 0 | F202: 0 | G202: 0 | H202: 0 | I202: 0 | J202: =SUM($H$20:$H202) -> 49100.26272
A203: 184 | B203: 2039-05-31 | C203: 0 | D203: 4151.671045 | E203: 0 | F203: 0 | G203: 0 | H203: 0 | I203: 0 | J203: =SUM($H$20:$H203) -> 49100.26272
A204: 185 | B204: 2039-07-01 | C204: 0 | D204: 4151.671045 | E204: 0 | F204: 0 | G204: 0 | H204: 0 | I204: 0 | J204: =SUM($H$20:$H204) -> 49100.26272
A205: 186 | B205: 2039-07-31 | C205: 0 | D205: 4151.671045 | E205: 0 | F205: 0 | G205: 0 | H205: 0 | I205: 0 | J205: =SUM($H$20:$H205) -> 49100.26272
... 294 more rows

Sheet Hoja1
B1: Comisión de gestión (CG)
B3: Desccripcion | C3: Monto
B4: Tinbres
B5: Centrald de riezgos
B6: Gastos por liquidacion
B7: seguro deuda
B10: TOTAL | C10: =SUM(C4:C9) -> 0
